Cogmind - Beta 16.1 @@@ ROGUE MODE // 2026.03.30 @ 08:55:52 Player: Gatamar Result: Destroyed by Y-45 Defender with Beam Rifle Performance ------------- Evolutions (1) 500 Regions Visited (2) 400 Robots Destroyed (26) 130 Value Destroyed (617) 617 Prototype IDs (0) 0 Alien Tech Used (0) 0 Bonus (0) 0 TOTAL SCORE: 1647 Bonus ------- None Cogmind --------- Core Integrity 0/400 Matter 300/300 Energy 96/100 System Corruption 0% Temperature Cool (11) Movement Walking (120) Location -9/Materials Parts ------- > --- POWER (1) -------- (None) > --- PROPULSION (3) --- Improved Aluminum Leg Improved Aluminum Leg Armored Wheel > --- UTILITY (3) ------ Large Storage Unit Seismic Detector ECM Suite > --- WEAPON (2) ------- (None) > --- INVENTORY (15) --- Ion Engine Aluminum Leg Huge Storage Unit Melee Analysis Suite Peak State ------------ > --- POWER ------------ Light Nuclear Core > --- PROPULSION ------- Aluminum Leg Aluminum Leg Aluminum Leg > --- UTILITY ---------- Large Storage Unit Seismic Detector Propulsion Shielding > --- WEAPON ----------- Beam Cannon Beam Cannon > --- INVENTORY -------- Ion Engine Ion Engine Aluminum Leg Armored Wheel Huge Storage Unit Melee Analysis Suite ECM Suite Assault Rifle Mining Laser [Rating: 12] Favorites ----------- Power Ion Engine Engine Ion Engine Power Core Light Nuclear Core Propulsion Aluminum Leg Treads Light Treads Leg Aluminum Leg Wheel Armored Wheel Utility Seismic Detector Device Seismic Detector Storage Large Storage Unit Protection Propulsion Shielding Weapon Assault Rifle Energy Cannon Beam Cannon Ballistic Gun Assault Rifle Special Weapon Mining Laser Build | -11 -10 -9 ------- Run | Yrd Mat Mat Slots Evolved 2 | . . 2 Power . | . . . Propulsion 1 | . . 1 Utility 1 | . . 1 Weapon . | . . . Parts Attached 27 | 8 12 7 Power 4 | 1 2 1 Engine 2 | 1 1 . Core 2 | . 1 1 Reactor . | . . . Propulsion 10 | 4 3 3 Treads 2 | 2 . . Leg 7 | 2 3 2 Wheel 1 | . . 1 Hover . | . . . Flight . | . . . Utility 7 | 1 4 2 Device 2 | . 1 1 Storage 4 | 1 3 . Processor . | . . . Hackware . | . . . Protection 1 | . . 1 Artifact . | . . . Weapon 6 | 2 3 1 Energy Gun . | . . . Energy Cannon 2 | . 1 1 Ballistic Gun 2 | 2 . . Ballistic Cannon . | . . . Launcher . | . . . Special Weapon 2 | . 2 . Impact Weapon . | . . . Slashing Weapon . | . . . Piercing Weapon . | . . . Special Melee Weapon . | . . . Unidentified Prototypes . | . . . Parts Lost 15 | . 5 10 Power 3 | . 1 2 Propulsion 5 | . 2 3 Utility 1 | . . 1 Weapon 6 | . 2 4 Highest Loss Streak 10 | . 2 10 To Critical Strikes . | . . . Average Backups 6 | 2 6 8 Power 1 | . 1 1 Propulsion 2 | 1 2 1 Utility 2 | . 2 2 Weapon . | . . 1 Tool/Special . | . . . Unused Backups 1 | . . 1 Power . | . . . Propulsion . | . . . Utility 1 | . . 1 Weapon . | . . . Tool/Special . | . . . Average Slot Usage (%) 93 | . 93 92 Engine 7 | . 9 2 Core 5 | . 4 7 Treads 8 | . 12 . Leg 19 | . 15 29 Device 11 | . 11 12 Storage 13 | . 14 11 Protection 2 | . . 9 Energy Cannon 5 | . 1 13 Ballistic Gun 13 | . 19 . Special Weapon 4 | . 3 6 Peak Build Rating 12 | 6 9 12 Average Rating 8 | 4 7 10 On Entrance 4 | . 6 7 Avg Prop Armor Cover (%) 9 | . . 9 Naked Turns . | . . . Heaviest Build 88 | 13 88 33 Greatest Support 40 | 40 40 30 Greatest Overweight (x) 2 | . 2 2 Average Overweight (x) . | . . . Largest Inventory Capacity 25 | 8 25 15 Average Capacity 13 | 6 13 15 Most Carried 9 | 3 9 9 Average Carried 6 | 2 6 8 Final Capacity 15 | 8 15 15 Final Carried 8 | 3 8 4 Class Distribution -------------------- 100% | Mutant Dominant Class ---------------- Mutant | -10/Materials Mutant | -9/Materials Resources | -11 -10 -9 ----------- Run | Yrd Mat Mat Matter Collected 797 | 221 433 143 Remotely . | . . . Salvage Created 1022 | . 563 459 Parts 47 | . 29 18 Haulers Intercepted 1 | . 1 . Recyclers Shooed . | . . . Parts Field Recycled . | . . . Retrieved Matter . | . . . Parts Self-Destructed . | . . . Prevented . | . . . Parts Restored . | . . . Kills | -11 -10 -9 ------- Run | Yrd Mat Mat Combat Hostiles Destroyed 16 | . 11 5 Guns 11 | . 11 . Cannons 5 | . . 5 Classes Destroyed 10 | . 6 4 Worker 1 | . . 1 Tunneler 1 | . 1 . Hauler 1 | . 1 . Recycler 4 | . 1 3 Operator 1 | . . 1 Watcher 2 | . 1 1 Swarmer 3 | . 3 . Grunt 11 | . 8 3 Duelist 1 | . . 1 Sentry 1 | . . 1 Best Kill Streak 5 | . 4 5 Combat Bots Only 3 | . 3 2 Max Kills in Single Turn 1 | . 1 1 Gunslinging . | . . . Exploded . | . . . Melee . | . . . Uniques/NPCs Destroyed . | . . . Combat | -11 -10 -9 -------- Run | Yrd Mat Mat Hostile Shots Fired 195 | . 83 112 Missed 50 | . 26 24 Hits 145 | . 57 88 Melee 1 | . . 1 Projectile 144 | . 57 87 Critical Strikes 2 | . 1 1 Damage Taken 2241 | . 960 1281 Core 645 | . 238 407 Absorbed by Shields . | . . . Redirected to Shielding 51 | . . 51 Regen/Repaired (Parts) 14 | . . 14 Core Remaining (%) 52 | 100 4 . Volleys Fired 118 | . 72 46 Largest 2 | . 2 2 Hottest 120 | . 100 120 Shots Fired 198 | . 128 70 Gun 114 | . 113 1 Cannon 60 | . 8 52 Launcher . | . . . Special 24 | . 7 17 Kinetic 114 | . 113 1 Thermal 84 | . 15 69 Explosive . | . . . Electromagnetic . | . . . Robot Hit Streak 23 | . 11 23 Robot Miss Streak 6 | . 6 5 Penetration Max . | . . . Secondary Targets . | . . . Shots Hit Robots 102 | . 63 39 Core Hits 47 | . 32 15 Critical Kills . | . . . Critical Parts Destroyed . | . . . Critical Strikes . | . . . Melee Attacks . | . . . Impact . | . . . Slashing . | . . . Piercing . | . . . Sneak Attacks . | . . . Combat Hostiles . | . . . Follow-up Attacks . | . . . Damage Inflicted 1414 | . 670 744 Guns 684 | . 670 14 Cannons 682 | . . 682 Explosions . | . . . Melee . | . . . Ramming . | . . . Kinetic 684 | . 670 14 Thermal 730 | . . 730 Explosive . | . . . Electromagnetic . | . . . Impact . | . . . Slashing . | . . . Piercing . | . . . Highest Corruption 3 | . 3 . Average Corruption 3 | . 3 . Corruption Purged . | . . . Corruption Blocked . | . . . Effects 1 | . 1 . Misfires 1 | . 1 . Overload Shots . | . . . Overflow Damage 14 | . . 14 Projectiles 14 | . . 14 Explosions . | . . . Melee . | . . . Knockbacks . | . . . Impact . | . . . Kinetic . | . . . Secondary . | . . . Self-Inflicted Damage . | . . . Shots . | . . . Rammed . | . . . Targets Rammed . | . . . Kicked . | . . . Crushed . | . . . Highest Temperature 534 | . 140 534 Average Temperature 78 | . 22 115 Received Heat Transfer 759 | . 327 432 Effects 12 | . . 12 Shutdowns 3 | . . 3 Energy Bleed 2 | . . 2 Interference 4 | . . 4 Short Circuit 2 | . . 2 Damage (minor) 1 | . . 1 Siege Activations . | . . . Martial Activations . | . . . Shielding Activations . | . . . Robots Disrupted . | . . . Combat Hostiles . | . . . Robots Corrupted . | . . . Combat Hostiles . | . . . Parts Fried . | . . . Impact Corruptions . | . . . Robots Melted . | . . . Combat Hostiles . | . . . Parts Melted 2 | . . 2 Heat Transferred 1543 | . . 1543 Parts Sabotaged . | . . . Parts Stolen . | . . . Parts Stripped . | . . . Power Chain Reactions . | . . . Alert | -11 -10 -9 ------- Run | Yrd Mat Mat Maximum Alert Level . | . . . Low Security (%) 100 | 100 100 100 Level 1 . | . . . Level 2 . | . . . Level 3 . | . . . Level 4 . | . . . Level 5 . | . . . High Security . | . . . Max Security . | . . . Peak Influence 103 | . 103 54 Initial . | . . . Average 15 | . 18 9 Influence Increases 601 | . 423 178 Destroy 0b10 Robot/C 320 | . 220 100 Destroy 0b10 Robot/NC 50 | . 20 30 Destroy Leader 86 | . 54 32 Successful Hack 17 | . 17 . Destroy Structure 23 | . 7 16 Lose Combat Pursuer 105 | . 105 . Influence Decreases 601 | . 423 178 Time Decay 554 | . 388 166 Lost Part 47 | . 35 12 Squads Dispatched 2 | . 1 1 Investigation 1 | . 1 . Extermination . | . . . Reinforcement 1 | . . 1 Assault . | . . . Garrison . | . . . Intercept . | . . . Searches Triggered . | . . . Construction Impeded . | . . . Haulers Reinforced . | . . . Active Scanning Responses . | . . . Cargo Convoy Interrupts . | . . . Stealth | -11 -10 -9 --------- Run | Yrd Mat Mat Distress Signals 4 | . 3 1 Communications Jammed . | . . . Distress Signals . | . . . Times Spotted 41 | . 26 15 Peak Tracking Total 5 | . 4 5 Tactical Retreats 5 | . 5 . Traps | -11 -10 -9 ------- Run | Yrd Mat Mat Traps Triggered 1 | . 1 . Indirectly . | . . . Trap Hack Attempts . | . . . Triggered . | . . . Disarmed . | . . . Reprogrammed . | . . . Reused . | . . . Traps Extracted . | . . . Installed . | . . . Triggered . | . . . Machines | -11 -10 -9 ---------- Run | Yrd Mat Mat Machines Disabled . | . . . Max in Single Turn . | . . . Machines Repaired . | . . . Machines Dismantled . | . . . Machines Sabotaged . | . . . Overloaded Fab Kills . | . . . Hacking | -11 -10 -9 --------- Run | Yrd Mat Mat Machines Accessed 10 | . 8 2 Terminals 7 | . 6 1 Fabricators . | . . . Repair Stations 1 | . . 1 Recycling Units 2 | . 2 . Scanalyzers . | . . . Garrison Access . | . . . Total Hacks 24 | . 17 7 Successful 17 | . 14 3 Failed 7 | . 3 4 Catastrophic 1 | . 1 . Database Lockouts . | . . . Manual 1 | . 1 . Terminals 18 | . 14 4 Fabricators . | . . . Repair Stations 3 | . . 3 Recycling Units 3 | . 3 . Scanalyzers . | . . . Garrison Access . | . . . Terminal Hacks 12 | . 11 1 Record 1 | . 1 . Branch Access Points 1 | . 1 . Alert Level 2 | . 2 . Locate Traps 1 | . 1 . Investigation Status 1 | . 1 . Hauler Manifests 2 | . 2 . Zone Layout 4 | . 3 1 Fabricator Hacks . | . . . Repair Station Hacks 2 | . . 2 Scan Component 1 | . . 1 Repair 1 | . . 1 Recycling Unit Hacks 3 | . 3 . Report Inventory 2 | . 2 . Retrieve Components 1 | . 1 . Scanalyzer . | . . . Garrison Access Hacks . | . . . Unauthorized Hacks . | . . . Terminals . | . . . Fabricators . | . . . Repair Stations . | . . . Recycling Units . | . . . Scanalyzers . | . . . Garrison Access . | . . . Data Cores Recovered . | . . . Used . | . . . Hacking Detections 7 | . 5 2 Full Trace Events 1 | . 1 . Feedback Events . | . . . Feedback Blocked . | . . . Robot Schematics Acquired . | . . . Robots Built . | . . . Authchips . | . . . Time . | . . . Total Robot Build Rating . | . . . Part Schematics Acquired . | . . . Parts Built . | . . . Authchips . | . . . Time . | . . . Total Part Build Rating . | . . . Part Studies Acquired . | . . . Parts Repaired 1 | . . 1 Time 26 | . . 26 Parts Recycled . | . . . Recycled Matter . | . . . Retrieved Matter . | . . . Retrieved Components 9 | . 9 . Parts Scanalyzed . | . . . Part Schematics Acquired . | . . . Parts Damaged . | . . . Bothacking | -11 -10 -9 ------------ Run | Yrd Mat Mat Used RIF Installer . | . . . Robots Hacked . | . . . Non-combat . | . . . Combat . | . . . Robot Hacks Applied . | . . . Relay Couplers Released . | . . . Fabnet Peak Effective % . | . . . Robots Rewired . | . . . Allies Hacked . | . . . Hacks Repelled . | . . . Allies | -11 -10 -9 -------- Run | Yrd Mat Mat Total Allies . | . . . Largest Group . | . . . Highest-Rated Group . | . . . Highest-Rated Ally . | . . . Total Orders . | . . . Ally Attacks . | . . . Total Damage . | . . . Kills . | . . . Allies Corrupted . | . . . Allies Melted . | . . . Intel | -11 -10 -9 ------- Run | Yrd Mat Mat Active Infowar (turns) 2222 | . 1540 682 Seismic 2212 | . 1540 672 ECM 10 | . . 10 Robot Analysis Total . | . . . Derelict Logs Recovered . | . . . Drone Launches . | . . . Drone Recoveries . | . . . Exploration | -11 -10 -9 ------------- Run | Yrd Mat Mat Turns Passed 2830 | 116 1890 824 Spaces Moved 1167 | 65 800 302 Core 2 | 2 . . Treads 436 | 52 384 . Legs 681 | 11 416 254 Wheels 48 | . . 48 Hover . | . . . Flight . | . . . Fastest Speed 50 | 50 160 105 Average Speed 173 | 149 176 173 Slowest Speed 320 | 160 320 190 Overloaded Moves . | . . . Propulsion Burnouts . | . . . Robots Hopped . | . . . Potential Cave-ins . | . . . Cave-ins Triggered 1 | . 1 . Exploration Rate (%) 41 | 5 91 28 Regions Visited 2 Branch Regions . Pre-discovered Areas . | . . . Known Exits Taken . | . . . Unknown Exits Taken 2 | 1 1 . Scrap Searched . | . . . Spaces Dug 22 | . 7 15 Terrain Destroyed 22 | . 7 15 Melee . | . . . Projectile 22 | . 7 15 AOE . | . . . Terrain Rammed . | . . . Walls Destroyed . | . . . Machines Disabled . | . . . Actions | -11 -10 -9 --------- Run | Yrd Mat Mat Total 1724 | 82 1148 494 Wait 381 | 5 250 126 Move 1165 | 64 799 302 Hop . | . . . Pick Up 10 | 3 5 2 Fast Attach 14 | 6 5 3 Attach 13 | 2 4 7 Detach 4 | 2 2 . Swap 16 | . 8 8 Drop 3 | . 3 . Fire 118 | . 72 46 Melee . | . . . Ram . | . . . Kick . | . . . Crush . | . . . Escape Stasis . | . . . Rewire . | . . . Trap . | . . . Miscellaneous . | . . . Route ------- -11/Scrapyard -10/Materials (discovered 4 exits: *Mat x3 / *Min) -9/Materials History --------- Turn | Location | Event 5 | -11/Scrapyard | Discovered new exit (range 16) 117 | -11/Scrapyard | Entered Materials 308 | -10/Materials | Build established: Mutant 624 | -10/Materials | Identified exit to Mines 753 | -10/Materials | Discovered new exit (range 8) 1201 | -10/Materials | Discovered new exit (range 5) 1322 | -10/Materials | Core integrity fell below 50% 1593 | -10/Materials | Discovered new exit (range 16) 1860 | -10/Materials | Crushed by falling debris 1860 | -10/Materials | Core integrity fell below 20% 2007 | -10/Materials | Entered another Materials area 2007 | -9/Materials | Evolved 2 slots: Propulsion x1, Utility x1 2327 | -9/Materials | Repaired Seismic Detector 2720 | -9/Materials | Core integrity fell below 50% 2760 | -9/Materials | Core integrity fell below 20% 2794 | -9/Materials | Lost 10 parts (2p3n1u4w) 2831 | -9/Materials | Destroyed by Y-45 Defender with Beam Rifle Last Messages --------------- 02733_ Broken Aluminum Leg destroyed. 02734_ G-47 Trooper overheating. 02737_ G-47 Trooper heat damages Broken Imp. Heat Sink. 02737_ G-47 Trooper overheating. 02737_ Assault Rifle destroyed. 02738_ G-47 Trooper overheating. 02739_ G-47 Trooper heat damages Broken Imp. Heat Sink, Aluminum Leg, Particle Gun, Lgt. Nuclear Core. 02740_ G-34 Mercenary destroyed. 02747_ Mining Laser destroyed. 02753_ Beam Cannon destroyed. 02754_ Acquired 26 matter. 02763_ Ion Engine destroyed. 02806_ Acquired Imp. Aluminum Leg. 02828_ Y-45 Defender suffers critical hit (Burn). 02828_ Y-45 Defender destroyed. 02831_ Acquired 27 matter. Map ----- +----------------------------------------------------+ | | | | | ##???????????????????????????????????? | | #???????????????????????????????????? | | #???????????????????????????????????? | | #?????????????????????????????####### | | #????????????????????????????? # | | #????????????????????????????# "S # | | #????????????????????????????# """ # | | ##????????????????????????#### "" # | | "##???????????????????????# # # | | ##"##################+##???# # """ # | | ##### + """ # | | # """ # | | # # | | ################### ######## """ # | | = [!#??????????## ######### """ # | | [ #???????????# # == # """ # | | #???????????# / = # # | | #?????####??# # ##### ## | | #????######## # #??????? | | #????# # #######/#??????? | | #????# """ # #???### ##?????? | | #???## """ # ##### g #?????? | | ! #???## """ # Y[ #?????? | | #+########### # @= #?????? | | # """ ######## #?????? | | + """ #?????## ##????? | | # """ #?????# #????? | | # ######+##/# #?????#! !#????? | | # #?#" #"" #?????##!!!!##????? | | # #?## """ #"T #??????######?????? | | # #??# "R" #"" #?????????????????? | | # #??# " " # #?????????????????? | | # ???# ### ####?????????????????? | | # ???# #??##????????????????????? | | # #??#+######????????????????????????? | | # #??# #?????????????????????????????? | | # #??# #?????????????????????????????? | | # #??# #?????????????????????????????? | | # #??# #?????????????????????????????? | | # #??# #?????????????????????????????? | | # #??# #?????????????????????????????? | | # #### ######????????????????????????? | | + +????????????????????????? | | # ###########????????????????????????? | | # #??????????????????????????????????? | | # #?????????# "????????????????????? | | # ###???????# ????????????????????? | | ##########+##????????????????????? | +----------------------------------------------------+ Best States ------------- Heat Dissipation 28 Energy Generation 14 Energy Capacity 250 Matter Stores 300 Matter Capacity 300 Sight Range 16 Terrain Scan Density 10 ECM Strength 1 Propulsion Shielding 33 Evasion (%) 50 Recoil Reduction 2 Item Schematics ----------------- None Robot Schematics ------------------ None Fabricated ------------ Nothing Repaired ---------- Seismic Detector | 30% | -9/Materials Studied --------- None Alien Tech Used ----------------- None Achievements -------------- None Challenges ------------ None Game ------ Seed AccelerationShiftInitializer Manual? 0 Play Time 00:24:12 Cumulative 28.8 hours Start 2026.03.30 @ 08:29:59 End 2026.03.30 @ 08:55:52 Sessions 2 Manual Loads 0 Difficulty Rogue Special Mode None Game No. 72 Rogue 72 Adventurer 0 Explorer 0 Win Type - Total 0 Types 0/0/0/0/0/0/0/0/0/0 Lore% 26 Gallery% 27 Achievement% 21 Wizard Run 0 Options --------- Layout 2 ASCII 0 Keyboard 0 Movement Mouse Keybinds 0 Fullscreen 1 Font 32/SmallcapsGlow Map View 50x44 Zoom Use 0% Tactical HUD 1 Map Filters NONE Filters NONE Steam 1 RUN: 8f44e4eb-0788-49d9-aa0d-5a794acdda54